fUSD/lending_fUSD_20250804
["ID","MTS","AMOUNT","RATE_DAILY","PERIOD"]
[377205032,1754290329236,-451.38,0.00047262,120]
[377205033,1754290329246,-400.0,0.00047262,120]
[377205034,1754290329256,-400.0,0.00047262,120]
[377205035,1754290329266,-400.0,0.00047262,120]
[377205036,1754290329276,-400.0,0.00047262,120]
[377205037,1754290329286,-400.0,0.00047262,120]
[377205038,1754290329295,-833.46,0.00047262,120]
[377205039,1754290329304,-1281.8,0.00047262,120]
[377205040,1754290329314,-400.0,0.00047262,120]
[377205041,1754290329324,-400.0,0.00047262,120]
[377205042,1754290329334,-869.18,0.00047262,120]
[377205043,1754290329343,-400.0,0.00047262,120]
[377205044,1754290329354,-621.77,0.00047262,120]
[377205045,1754290329364,-277.707319,0.00047262,14]
[377205046,1754290329373,-432.43,0.00047262,120]
[377205047,1754290329383,-151.0,0.00047262,14]
[377205048,1754290329393,-277.707319,0.00047262,14]
[377205049,1754290329403,-151.0,0.00047262,14]
[377205050,1754290329414,-400.0,0.00047262,120]
[377205051,1754290329424,-400.0,0.00047262,120]
[377205052,1754290329434,-400.0,0.00047262,120]
[377205053,1754290329445,-400.0,0.00047262,120]
[377205054,1754290329455,-676.44,0.00047262,120]
[377205055,1754290329465,-400.0,0.00047262,120]
[377205056,1754290329475,-812.3,0.00047262,120]
[377205057,1754290329484,-587.51,0.00047262,120]
[377205058,1754290329494,-624.46,0.00047262,120]
[377205059,1754290329503,-400.0,0.00047262,120]
[377205060,1754290329513,-400.0,0.00047262,120]
[377205061,1754290329522,-400.0,0.00047262,120]
[377205062,1754290329532,-696.02,0.00047262,120]
[377205063,1754290329541,-400.0,0.00047262,120]
[377205064,1754290329551,-151.0,0.00047262,14]
[377205065,1754290329561,-1192.58,0.00047262,120]
[377205066,1754290329571,-151.0,0.00047262,14]
[377205067,1754290329582,-400.0,0.00047262,120]
[377205068,1754290329592,-450.66,0.00047262,120]
[377205069,1754290329706,-400.0,0.00047262,120]
[377205070,1754290329715,-400.0,0.00047262,120]
[377205071,1754290329727,-402.34730874,0.00047262,120]
[377205072,1754290329738,-489.9,0.00047262,120]
[377205073,1754290329749,-408.15,0.00047262,120]
[377205074,1754290329758,-400.0,0.00047262,120]
[377205075,1754290329769,-1065.39,0.00047262,120]
[377205076,1754290329780,-151.0,0.00047262,14]
[377205077,1754290329790,-1254.04,0.00047262,120]
[377205078,1754290329801,-284.34217755,0.00047262,120]
[377205079,1754290329811,-151.0,0.00047262,14]
[377205080,1754290329820,-400.0,0.00047262,120]
[377205081,1754290329830,-400.0,0.00047262,120]
[377205082,1754290329840,-151.0,0.00047262,14]
[377205083,1754290329850,-1561.925184,0.00047262,14]
[377205084,1754290329860,-400.0,0.00047262,120]
[377205085,1754290329869,-1561.925184,0.00047262,14]
[377205086,1754290329879,-400.0,0.00047262,120]
[377205087,1754290329889,-400.0,0.00047262,120]
[377205088,1754290329899,-400.0,0.00047262,120]
[377205089,1754290329908,-400.0,0.00047262,120]
[377205090,1754290329918,-400.0,0.00047262,120]
[377205091,1754290329928,-400.0,0.00047262,120]
[377205092,1754290329937,-700.37,0.00047262,120]
[377205093,1754290329947,-587.03,0.00047262,120]
[377205094,1754290329956,-686.88,0.00047262,120]
[377205095,1754290329966,-508.89,0.00047262,120]
[377205096,1754290329976,-400.0,0.00047262,120]
[377205097,1754290329985,-839.3,0.00047262,120]
[377205098,1754290329995,-400.0,0.00047262,120]
[377205099,1754290330005,-151.0,0.00047262,14]
[377205100,1754290330015,-151.0,0.00047262,14]
[377205101,1754290330024,-400.0,0.00047262,120]
[377205102,1754290330034,-716.58,0.00047262,120]
[377205103,1754290330044,-151.0,0.00047262,14]
[377205104,1754290330053,-151.0,0.00047262,14]
[377205105,1754290330063,-400.0,0.00047262,120]
[377205106,1754290330073,-982.75,0.00047262,120]
[377205107,1754290330083,-400.0,0.00047262,120]
[377205108,1754290330093,-400.0,0.00047262,120]
[377205109,1754290330103,-400.0,0.00047262,120]
[377205110,1754290330112,-400.0,0.00047262,120]
[377205111,1754290330121,-151.0,0.00047262,14]
[377205112,1754290330130,-623.88,0.00047262,120]
[377205113,1754290330139,-1016.34,0.00047262,120]
[377205114,1754290330148,-1008.23,0.00047262,120]
[377205115,1754290330158,-461.975391,0.00047262,14]
[377205116,1754290330167,-461.975391,0.00047262,14]
[377205117,1754290330177,-1870.31,0.00047262,120]
[377205118,1754290330187,-151.0,0.00047262,14]
[377205119,1754290330196,-500.0,0.00047262,30]
[377205120,1754290330205,-400.0,0.00047262,120]
[377205121,1754290330214,-400.0,0.00047262,120]
[377205122,1754290330224,-866.44,0.00047262,120]
[377205123,1754290330233,-400.0,0.00047262,120]
[377205124,1754290330243,-400.0,0.00047262,120]
[377205125,1754290330252,-1767.88,0.00047262,120]
[377205126,1754290330262,-400.0,0.00047262,120]
[377205127,1754290330272,-686.12,0.00047262,120]
[377205128,1754290330282,-401.03076626,0.00047262,120]
[377205129,1754290330291,-400.0,0.00047262,120]
[377205130,1754290330301,-400.0,0.00047262,120]
[377205131,1754290330310,-151.0,0.00047262,14]
[377205132,1754290330319,-400.0,0.00047262,120]
[377205133,1754290330329,-400.0,0.00047262,120]
[377205134,1754290330338,-177.685595,0.00047262,14]
[377205135,1754290330347,-151.0,0.00047262,14]
[377205136,1754290330357,-177.685595,0.00047262,14]
[377205137,1754290330366,-151.0,0.00047262,14]
[377205138,1754290330375,-151.0,0.00047262,14]
[377205139,1754290330384,-151.0,0.00047262,14]
[377205140,1754290330394,-271.980692,0.00047262,14]
[377205141,1754290330403,-271.980692,0.00047262,14]
[377205142,1754290330413,-151.0,0.00047262,14]
[377205143,1754290330422,-151.0,0.00047262,14]
[377205144,1754290330431,-1553.465892,0.00047262,14]
[377205145,1754290330441,-1553.465892,0.00047262,14]
[377205146,1754290330450,-226.969151,0.00047262,14]
[377205147,1754290330459,-226.969151,0.00047262,14]
[377205148,1754290330469,-759.368077,0.00047262,14]
[377205149,1754290330478,-759.368077,0.00047262,14]
[377205150,1754290330488,-151.0,0.00047262,14]
[377205151,1754290330497,-162.718965,0.00047262,14]
[377205152,1754290330506,-879.395519,0.00047262,14]
[377205153,1754290330515,-879.395519,0.00047262,14]
[377205154,1754290330524,-151.0,0.00047262,14]
[377205155,1754290330534,-150.0,0.00047266,7]
[377205156,1754290330543,-519.33329631,0.00047266,15]
[377205157,1754290330552,-493.0,0.00047267,7]
[377205158,1754290330562,-400.0,0.00047294,120]
[377205159,1754290330571,-462.17620602,0.00047294,120]
[377205160,1754290330580,-489.67,0.00047294,120]
[377205161,1754290330589,-400.0,0.00047294,120]
[377205162,1754290330599,-2452.52,0.00047294,120]
[377205163,1754290330608,-400.0,0.00047294,120]
[377205164,1754290330617,-400.0,0.00047294,120]
[377205165,1754290330626,-400.0,0.00047294,120]
[377205166,1754290330635,-6842.01,0.00047294,120]
[377205167,1754290330645,-151.0,0.00047294,14]
[377205168,1754290330654,-151.0,0.00047295,14]
[377205169,1754290330664,-151.0,0.00047295,14]
[377205170,1754290330674,-316.070445,0.00047295,14]
[377205171,1754290330687,-316.070445,0.00047295,14]
[377205172,1754290330697,-154.3503,0.00047295,14]
[377205173,1754290330706,-151.0,0.00047295,14]
[377205174,1754290330715,-335.424605,0.00047295,14]
[377205175,1754290330726,-335.424605,0.00047295,14]
[377205176,1754290330735,-151.0,0.00047295,14]
[377205177,1754290330745,-151.0,0.00047295,14]
[377205178,1754290330756,-400.0,0.00047295,120]
[377205179,1754290330766,-562.27,0.00047295,120]
[377205180,1754290330777,-151.0,0.00047295,14]
[377205181,1754290330787,-400.0,0.00047295,120]
[377205182,1754290330797,-500.92,0.00047295,120]
[377205183,1754290330807,-400.0,0.00047295,120]
[377205184,1754290330817,-1744.82,0.00047295,120]
[377205185,1754290330827,-1361.4,0.00047295,120]
[377205186,1754290330838,-151.0,0.00047295,14]
[377205187,1754290330850,-669.57,0.00047295,120]
[377205188,1754290330860,-1817.69,0.00047295,120]
[377205189,1754290330870,-579.33,0.00047295,120]
[377205190,1754290330880,-151.0,0.00047295,14]
[377205191,1754290330890,-206.103026,0.00047295,14]
[377205192,1754290330902,-400.0,0.00047295,120]
[377205193,1754290330912,-400.0,0.00047295,120]
[377205194,1754290330921,-490.79,0.00047295,120]
[377205195,1754290330930,-400.0,0.00047295,120]
[377205196,1754290330939,-400.0,0.00047295,120]
[377205197,1754290330949,-400.0,0.00047295,120]
[377205198,1754290330958,-400.0,0.00047295,120]
[377205199,1754290330968,-150.0,0.00047295,7]
[377205200,1754290330977,-809.06,0.00047295,120]
[377205201,1754290330986,-1226.73,0.00047295,120]
[377205202,1754290330995,-1863.87,0.00047295,120]
[377205203,1754290331005,-971.64,0.00047295,120]
[377205204,1754290331014,-1351.39,0.00047295,120]
[377205205,1754290331024,-444.66,0.00047295,120]
[377205206,1754290331033,-491.07,0.00047296,120]
[377205207,1754290331043,-572.97,0.00047296,120]
[377205208,1754290331052,-609.61,0.00047296,120]
[377205209,1754290331063,-451.64,0.00047296,120]
[377205210,1754290331073,-544.95,0.00047296,120]
[377205211,1754290331082,-1000.0,0.00047296,120]
[377205212,1754290331092,-400.0,0.00047296,120]
[377205213,1754290331101,-875.84,0.00047296,120]
[377205214,1754290331111,-1081.24,0.00047296,120]
[377205215,1754290331121,-400.0,0.00047296,120]
[377205216,1754290331131,-1125.71,0.00047296,120]
[377205217,1754290331140,-400.0,0.00047296,120]
[377205218,1754290331151,-1075.11,0.00047296,120]
[377205219,1754290331160,-1135.97,0.00047296,120]
[377205220,1754290331170,-837.31,0.00047296,120]
[377205221,1754290331179,-631.71,0.00047296,120]
[377205222,1754290331188,-400.0,0.00047296,120]
[377205223,1754290331198,-400.0,0.00047296,120]
[377205224,1754290331207,-400.0,0.00047296,120]
[377205225,1754290331217,-943.05,0.00047296,120]
[377205226,1754290331227,-874.81,0.00047296,120]
[377205227,1754290331236,-710.83,0.00047296,120]
[377205228,1754290331246,-400.0,0.00047296,120]
[377205229,1754290331256,-962.78,0.00047296,120]
[377205230,1754290331265,-521.3,0.00047296,120]
[377205231,1754290331275,-400.0,0.00047296,120]
[377205232,1754290331284,-1665.02,0.00047296,120]
[377205233,1754290331294,-1123.16,0.00047296,120]
[377205234,1754290331303,-1203.56,0.00047296,120]
[377205235,1754290331312,-400.0,0.00047296,120]
[377205236,1754290331322,-1304.29,0.00047296,120]
[377205237,1754290331331,-498.27,0.00047296,120]
[377205238,1754290331341,-1203.79,0.00047296,120]
[377205239,1754290331351,-1029.19,0.00047296,120]
[377205240,1754290331360,-804.54,0.00047296,120]
[377205241,1754290331370,-902.84,0.00047296,120]
[377205242,1754290331379,-439.27,0.00047296,120]
[377205243,1754290331389,-1564.15,0.00047296,120]
[377205244,1754290331398,-546.61,0.00047296,120]
[377205245,1754290331408,-410.11,0.00047296,120]
[377205246,1754290331417,-480.03,0.000473,30]
[377205247,1754290331427,-706.72327176,0.00047301,61]
[377205248,1754290331437,-150.0,0.00047317,7]
[377205249,1754290331446,-888.0,0.00047338,120]
[377205250,1754290331455,-150.0,0.00047365,7]
[377205251,1754290331464,-151.0,0.00047371,14]
[377205252,1754290331474,-151.0,0.00047371,14]
[377205253,1754290331483,-151.0,0.00047371,14]
[377205254,1754290331493,-151.0,0.00047371,14]
[377205255,1754290331502,-151.0,0.00047371,14]
[377205256,1754290331512,-151.0,0.00047371,14]
[377205257,1754290331521,-151.0,0.00047371,14]
[377205258,1754290331531,-1213.0,0.00047371,14]
[377205259,1754290331540,-151.0,0.00047371,14]
[377205260,1754290331549,-1213.0,0.00047371,14]
[377205261,1754290331558,-1213.0,0.00047371,14]
[377205262,1754290331567,-1213.0,0.00047371,14]
[377205263,1754290331577,-1213.0,0.00047371,14]
[377205264,1754290331586,-1213.0,0.00047371,14]
[377205265,1754290331595,-1213.0,0.00047371,14]
[377205266,1754290331605,-331.47460071,0.00047371,14]
[377205267,1754290331615,-151.0,0.00047371,14]
[377205268,1754290331625,-154.73384471,0.00047371,14]
[377205269,1754290331635,-151.0,0.00047371,14]
[377205270,1754290331644,-151.0,0.00047371,14]
[377205271,1754290331653,-1213.0,0.00047371,14]
[377205272,1754290331663,-151.0,0.00047386,14]
[377205273,1754290331672,-151.0,0.00047386,14]
[377205274,1754290331686,-1489.68,0.00047386,120]
[377205275,1754290331695,-151.0,0.00047386,14]
[377205276,1754290331705,-151.0,0.00047386,14]
[377205277,1754290331714,-432.95,0.00047386,120]
[377205278,1754290331723,-1113.83,0.00047386,120]
[377205279,1754290331733,-400.0,0.00047386,120]
[377205280,1754290331742,-406.65,0.00047386,120]
[377205281,1754290331752,-1000.0,0.00047386,120]
[377205282,1754290331762,-560.64,0.00047386,120]
[377205283,1754290331772,-400.0,0.00047386,120]
[377205284,1754290331781,-400.0,0.00047386,120]
[377205285,1754290331791,-710.83,0.00047386,120]
[377205286,1754290331800,-400.0,0.00047386,120]
[377205287,1754290331809,-649.27,0.00047386,120]
[377205288,1754290331819,-552.88,0.00047386,120]
[377205289,1754290331828,-2792.42,0.00047386,120]
[377205290,1754290331837,-2268.23,0.00047394,120]
[377205291,1754290331846,-151.0,0.00047395,14]
[377205292,1754290331856,-151.0,0.00047395,14]
[377205293,1754290331865,-184.107189,0.00047395,14]
[377205294,1754290331874,-157.134854,0.00047395,14]
[377205295,1754290331883,-157.134854,0.00047395,14]
[377205296,1754290331893,-151.0,0.00047395,14]
[377205297,1754290331902,-200.0,0.00047395,2]
[377205298,1754290331912,-200.0,0.00047395,2]
[377205299,1754290331921,-200.0,0.00047395,2]
[377205300,1754290331930,-200.0,0.00047395,2]
[377205301,1754290331941,-200.0,0.00047395,2]
[377205302,1754290331950,-200.0,0.00047395,2]
[377205303,1754290331960,-200.0,0.00047395,2]
[377205304,1754290331969,-200.0,0.00047395,2]
[377205305,1754290331980,-200.0,0.00047395,2]
[377205306,1754290331989,-200.0,0.00047395,2]
[377205307,1754290331998,-200.0,0.00047395,2]
[377205308,1754290332007,-200.0,0.00047395,2]
[377205309,1754290332017,-200.0,0.00047395,2]
[377205310,1754290332026,-200.0,0.00047395,2]
[377205311,1754290332036,-200.0,0.00047395,2]
[377205312,1754290332046,-200.0,0.00047395,2]
[377205313,1754290332059,-200.0,0.00047395,2]
[377205314,1754290332069,-200.0,0.00047395,2]
[377205315,1754290332078,-200.0,0.00047395,2]
[377205316,1754290332087,-200.0,0.00047395,2]
[377205317,1754290332097,-200.0,0.00047395,2]
[377205318,1754290332107,-176.507332,0.00047395,2]
[377205319,1754290332116,-247.687436,0.00047395,14]
[377205320,1754290332125,-247.687436,0.00047395,14]
[377205321,1754290332135,-159.022194,0.00047395,14]
[377205322,1754290332144,-161.047084,0.00047395,14]
[377205323,1754290332154,-161.047084,0.00047395,14]
[377205324,1754290332164,-151.0,0.00047395,14]
[377205325,1754290332173,-400.0,0.00047395,120]
[377205326,1754290332182,-400.0,0.00047395,120]
[377205327,1754290332193,-151.0,0.00047395,14]
[377205328,1754290332203,-400.0,0.00047395,120]
[377205329,1754290332213,-400.0,0.00047395,120]
[377205330,1754290332222,-402.08556095,0.00047395,120]
[377205331,1754290332231,-1100.823876,0.00047395,14]
[377205332,1754290332241,-400.0,0.00047395,120]
[377205333,1754290332252,-1100.823876,0.00047395,14]
[377205334,1754290332263,-212.283583,0.00047395,14]
[377205335,1754290332272,-151.0,0.00047395,14]
[377205336,1754290332283,-151.0,0.00047395,14]
[377205337,1754290332294,-212.283583,0.00047395,14]
[377205338,1754290332303,-151.0,0.00047395,14]
[377205339,1754290332312,-400.0,0.00047395,120]
[377205340,1754290332321,-400.0,0.00047395,16]
[377205341,1754290332332,-400.0,0.00047395,120]
[377205342,1754290332343,-400.0,0.00047395,120]
[377205343,1754290332353,-400.0,0.00047395,120]
[377205344,1754290332363,-462.583697,0.00047395,30]
[377205345,1754290332372,-402.53952575,0.00047395,120]
[377205346,1754290332383,-400.0,0.00047395,120]
[377205347,1754290332392,-548.66,0.00047395,120]
[377205348,1754290332403,-277.707319,0.00047395,14]
[377205349,1754290332414,-151.0,0.00047395,14]
[377205350,1754290332424,-277.707319,0.00047395,14]
[377205351,1754290332433,-151.0,0.00047395,14]
[377205352,1754290332443,-400.0,0.00047395,120]
[377205353,1754290332454,-151.0,0.00047395,14]
[377205354,1754290332464,-400.0,0.00047395,120]
[377205355,1754290332473,-402.42512924,0.00047395,120]
[377205356,1754290332482,-1932.33,0.00047395,120]
[377205357,1754290332492,-628.41,0.00047395,120]
[377205358,1754290332501,-400.0,0.00047395,120]
[377205359,1754290332511,-787.95,0.00047395,120]
[377205360,1754290332522,-152.817705,0.00047395,14]
[377205361,1754290332532,-152.659674,0.00047395,14]
[377205362,1754290332542,-400.0,0.00047395,120]
[377205363,1754290332553,-151.0,0.00047395,14]
[377205364,1754290332563,-400.0,0.00047395,120]
[377205365,1754290332575,-400.0,0.00047395,120]
[377205366,1754290332586,-415.61,0.00047395,120]
[377205367,1754290332596,-1291.26,0.00047395,120]
[377205368,1754290332607,-530.74,0.00047395,120]
[377205369,1754290332616,-1049.53,0.00047395,120]
[377205370,1754290332627,-400.0,0.00047395,120]
[377205371,1754290332637,-400.0,0.00047395,90]
[377205372,1754290332648,-400.0,0.00047395,120]
[377205373,1754290332659,-400.0,0.00047395,120]
[377205374,1754290332669,-400.0,0.00047395,120]
[377205375,1754290332684,-400.0,0.00047395,120]
[377205376,1754290332694,-424.15,0.00047395,120]
[377205377,1754290332704,-400.0,0.00047395,120]
[377205378,1754290332715,-424.59,0.00047395,120]
[377205379,1754290332727,-969.57,0.00047395,120]
[377205380,1754290332737,-1045.44,0.00047395,120]
[377205381,1754290332747,-725.25,0.00047395,120]
[377205382,1754290332758,-400.0,0.00047395,120]
[377205383,1754290332769,-330.24032336,0.00047395,120]
[377205384,1754290332779,-400.0,0.00047395,120]
[377205385,1754290332788,-400.0,0.00047395,120]
[377205386,1754290332798,-400.0,0.00047395,120]
[377205387,1754290332808,-400.0,0.00047395,120]
[377205388,1754290332818,-714.58,0.00047395,120]
[377205389,1754290332828,-285.780801,0.00047395,14]
[377205390,1754290332838,-400.0,0.00047395,120]
[377205391,1754290332847,-799.01,0.00047395,120]
[377205392,1754290332857,-151.0,0.00047395,14]
[377205393,1754290332868,-411.41,0.00047395,120]
[377205394,1754290332877,-1561.925184,0.00047395,14]
[377205395,1754290332887,-1561.925184,0.00047395,14]
[377205396,1754290332897,-400.0,0.00047395,120]
[377205397,1754290332907,-550.74,0.00047395,120]
[377205398,1754290332916,-1325.57,0.00047395,120]
[377205399,1754290332926,-400.0,0.00047395,120]
[377205400,1754290332935,-585.34,0.00047395,120]
[377205401,1754290332945,-151.0,0.00047395,14]
[377205402,1754290332954,-400.0,0.00047395,120]
[377205403,1754290332964,-887.25,0.00047395,120]
[377205404,1754290332974,-151.0,0.00047395,14]
[377205405,1754290332983,-400.0,0.00047395,120]
[377205406,1754290332992,-400.0,0.00047395,120]
[377205407,1754290333002,-400.0,0.00047395,120]
[377205408,1754290333012,-667.22,0.00047395,120]
[377205409,1754290333022,-411.23,0.00047395,120]
[377205410,1754290333032,-400.0,0.00047395,120]
[377205411,1754290333042,-400.0,0.00047395,120]
[377205412,1754290333052,-606.02,0.00047395,120]
[377205413,1754290333062,-1502.07,0.00047395,120]
[377205414,1754290333072,-400.0,0.00047395,120]
[377205415,1754290333082,-400.0,0.00047395,120]
[377205416,1754290333092,-157.97721988,0.00047395,120]
[377205417,1754290333102,-400.0,0.00047395,120]
[377205418,1754290333113,-1429.84,0.00047395,120]
[377205419,1754290333122,-151.0,0.00047395,14]
[377205420,1754290333132,-400.0,0.00047395,120]
[377205421,1754290333142,-154.89547,0.00047395,14]
[377205422,1754290333153,-400.0,0.00047395,120]
[377205423,1754290333163,-151.0,0.00047395,14]
[377205424,1754290333173,-1497.43,0.00047395,120]
[377205425,1754290333183,-413.75,0.00047395,120]
[377205426,1754290333193,-400.0,0.00047395,120]
[377205427,1754290333203,-151.0,0.00047395,14]
[377205428,1754290333213,-1797.51,0.00047395,120]
[377205429,1754290333222,-1036.9,0.00047395,120]
[377205430,1754290333232,-151.0,0.00047395,14]
[377205431,1754290333242,-400.0,0.00047395,120]
[377205432,1754290333252,-400.0,0.00047395,120]
[377205433,1754290333262,-798.55,0.00047395,120]
[377205434,1754290333272,-400.0,0.00047395,120]
[377205435,1754290333282,-1300.22,0.00047395,120]
[377205436,1754290333292,-400.0,0.00047395,120]
[377205437,1754290333302,-400.0,0.00047395,120]
[377205438,1754290333312,-400.0,0.00047395,120]
[377205439,1754290333322,-400.0,0.00047395,120]
[377205440,1754290333332,-617.54,0.00047395,120]
[377205441,1754290333342,-867.82,0.00047395,120]
[377205442,1754290333352,-400.0,0.00047395,120]
[377205443,1754290333362,-400.0,0.00047395,120]
[377205444,1754290333372,-151.0,0.00047395,14]
[377205445,1754290333382,-1082.12,0.00047395,120]
[377205446,1754290333392,-471.92,0.00047395,120]
[377205447,1754290333402,-400.0,0.00047395,120]
[377205448,1754290333412,-536.03,0.00047395,120]
[377205449,1754290333421,-400.0,0.00047395,120]
[377205450,1754290333431,-400.0,0.00047395,120]
[377205451,1754290333440,-1159.47,0.00047395,120]
[377205452,1754290333450,-400.0,0.00047395,120]
[377205453,1754290333460,-1498.69,0.00047395,120]
[377205454,1754290333470,-461.975391,0.00047395,14]
[377205455,1754290333480,-862.09,0.00047395,120]
[377205456,1754290333489,-400.0,0.00047395,120]
[377205457,1754290333499,-854.43,0.00047395,120]
[377205458,1754290333509,-461.975391,0.00047395,14]
[377205459,1754290333519,-1082.83,0.00047395,120]
[377205460,1754290333529,-400.0,0.00047395,120]
[377205461,1754290333539,-1834.99,0.00047395,120]
[377205462,1754290333550,-447.19,0.00047395,120]
[377205463,1754290333560,-247.744462,0.00047395,14]
[377205464,1754290333570,-400.0,0.00047395,120]
[377205465,1754290333579,-715.03,0.00047395,120]
[377205466,1754290333589,-623.69,0.00047395,120]
[377205467,1754290333599,-401.35789659,0.00047395,120]
[377205468,1754290333610,-878.68,0.00047395,120]
[377205469,1754290333620,-404.35,0.00047395,120]
[377205470,1754290333630,-1095.01,0.00047395,120]
[377205471,1754290333641,-584.16,0.00047395,120]
[377205472,1754290333652,-565.86,0.00047395,120]
[377205473,1754290333662,-400.0,0.00047395,120]
[377205474,1754290333673,-400.0,0.00047395,120]
[377205475,1754290333687,-400.0,0.00047395,120]
[377205476,1754290333697,-676.02,0.00047395,120]
[377205477,1754290333707,-1670.57,0.00047395,120]
[377205478,1754290333718,-400.0,0.00047395,120]
[377205479,1754290333729,-1199.94,0.00047395,120]
[377205480,1754290333738,-151.0,0.00047395,14]
[377205481,1754290333748,-543.84,0.00047395,120]
[377205482,1754290333759,-941.48,0.00047395,120]
[377205483,1754290333769,-400.0,0.00047395,120]
[377205484,1754290333779,-761.23,0.00047395,120]
[377205485,1754290333789,-629.68,0.00047395,120]
[377205486,1754290333799,-400.0,0.00047395,120]
[377205487,1754290333810,-400.0,0.00047395,120]
[377205488,1754290333820,-400.0,0.00047395,120]
[377205489,1754290333830,-400.0,0.00047395,120]
[377205490,1754290333840,-400.0,0.00047395,120]
[377205491,1754290333851,-400.0,0.00047395,120]
[377205492,1754290333861,-400.0,0.00047395,120]
[377205493,1754290333871,-497.21,0.00047395,120]
[377205494,1754290333881,-1526.71,0.00047395,120]
[377205495,1754290333891,-400.0,0.00047395,120]
[377205496,1754290333901,-403.03408759,0.00047395,120]
[377205497,1754290333911,-401.18364362,0.00047395,120]
[377205498,1754290333921,-411.22,0.00047395,120]
[377205499,1754290333930,-518.84,0.00047395,120]
[377205500,1754290333940,-1696.14,0.00047395,120]
[377205501,1754290333950,-400.0,0.00047395,120]
[377205502,1754290333960,-463.73,0.00047395,120]
[377205503,1754290333970,-563.54,0.00047395,120]
[377205504,1754290333980,-578.38,0.00047395,120]
[377205505,1754290333990,-702.4,0.00047395,120]
[377205506,1754290334000,-1563.75,0.00047395,120]
[377205507,1754290334010,-703.1,0.00047395,120]
[377205508,1754290334020,-452.2,0.00047395,120]
[377205509,1754290334030,-400.0,0.00047395,120]
[377205510,1754290334040,-151.0,0.00047395,14]
[377205511,1754290334050,-901.45,0.00047395,120]
[377205512,1754290334061,-400.0,0.00047395,120]
[377205513,1754290334071,-980.37,0.00047395,120]
[377205514,1754290334081,-400.0,0.00047395,120]
[377205515,1754290334091,-400.0,0.00047395,120]
[377205516,1754290334101,-2641.33,0.00047395,120]
[377205517,1754290334112,-400.0,0.00047395,120]
[377205518,1754290334122,-1192.35,0.00047395,120]
[377205519,1754290334132,-400.0,0.00047395,120]
[377205520,1754290334142,-400.0,0.00047395,120]
[377205521,1754290334152,-1018.77,0.00047395,120]
[377205522,1754290334162,-400.0,0.00047395,120]
[377205523,1754290334172,-151.0,0.00047395,14]
[377205524,1754290334182,-967.38,0.00047395,120]
[377205525,1754290334192,-400.0,0.00047395,120]
[377205526,1754290334202,-400.0,0.00047395,120]
[377205527,1754290334212,-177.26875513,0.00047395,120]
[377205528,1754290334222,-987.9,0.00047395,120]
[377205529,1754290334232,-400.0,0.00047395,120]
[377205530,1754290334242,-400.0,0.00047395,120]
[377205531,1754290334252,-400.0,0.00047395,120]